[Event "*** Titled Tuesday Blitz"]
[Site "Chess.com"]
[Date "2020.10.27"]
[Round "4"]
[White "Manukyan_Artak"]
[Black "poppy73"]
[Result "1-0"]
[WhiteElo "2421"]
[BlackElo "2224"]
[TimeControl "180+1"]
[EndTime "10:39:55 PDT"]
[Termination "Manukyan_Artak won by resignation"]

1. e4 {[%clk 0:02:56.8]} 1... c5 {[%clk 0:02:58.1]} 2. Nf3 {[%clk 0:02:56.6]}
2... d6 {[%clk 0:02:58.5]} 3. Bb5+ {[%clk 0:02:56]} 3... Nd7 {[%clk 0:02:57.6]}
4. O-O {[%clk 0:02:55.3]} 4... a6 {[%clk 0:02:57.5]} 5. Bd3 {[%clk 0:02:50.1]}
5... Ngf6 {[%clk 0:02:56.7]} 6. Re1 {[%clk 0:02:49.1]} 6... g6 {[%clk
0:02:56.4]} 7. c3 {[%clk 0:02:48.8]} 7... Bh6 {[%clk 0:02:53]} 8. a4 {[%clk
0:02:47.2]} 8... Ne5 {[%clk 0:02:49.1]} 9. Be2 {[%clk 0:02:44.3]} 9... O-O
{[%clk 0:02:46.6]} 10. d4 {[%clk 0:02:40.2]} 10... Nxf3+ {[%clk 0:02:44.8]} 11.
Bxf3 {[%clk 0:02:40.4]} 11... Bxc1 {[%clk 0:02:43.7]} 12. Qxc1 {[%clk
0:02:41.3]} 12... e5 {[%clk 0:02:39.5]} 13. dxe5 {[%clk 0:02:38.8]} 13... dxe5
{[%clk 0:02:38.5]} 14. Qg5 {[%clk 0:02:29.9]} 14... Qe7 {[%clk 0:02:26.6]} 15.
Nd2 {[%clk 0:02:27.9]} 15... Kg7 {[%clk 0:02:21.9]} 16. Nc4 {[%clk 0:02:25.7]}
16... Re8 {[%clk 0:02:19.4]} 17. a5 {[%clk 0:02:08.3]} 17... h6 {[%clk
0:02:15.9]} 18. Qe3 {[%clk 0:02:06.6]} 18... Bd7 {[%clk 0:02:09.9]} 19. Rad1
{[%clk 0:02:04.6]} 19... Bb5 {[%clk 0:01:54.7]} 20. Nd6 {[%clk 0:02:02.2]} 20...
Red8 {[%clk 0:01:54.1]} 21. Qxc5 {[%clk 0:01:44.3]} 21... Rd7 {[%clk 0:01:26.7]}
22. b4 {[%clk 0:01:25.7]} 22... Rad8 {[%clk 0:01:15.9]} 23. Nxb5 {[%clk
0:01:20.6]} 23... Rxd1 {[%clk 0:01:00.2]} 24. Rxd1 {[%clk 0:01:19.2]} 24...
Rxd1+ {[%clk 0:00:55.8]} 25. Bxd1 {[%clk 0:01:20.1]} 25... Qxc5 {[%clk 0:00:56]}
26. bxc5 {[%clk 0:01:20.5]} 26... axb5 {[%clk 0:00:56.9]} 27. f3 {[%clk
0:01:17.3]} 27... Nd7 {[%clk 0:00:54.1]} 28. Be2 {[%clk 0:01:17.4]} 28... Nxc5
{[%clk 0:00:53.7]} 29. Bxb5 {[%clk 0:01:17.3]} 29... Kf6 {[%clk 0:00:52.1]} 30.
Kf2 {[%clk 0:01:15.5]} 30... Ke7 {[%clk 0:00:51.7]} 31. Ke3 {[%clk 0:01:14]}
31... Kd6 {[%clk 0:00:51.3]} 32. h4 {[%clk 0:01:04.9]} 32... g5 {[%clk
0:00:49.2]} 33. hxg5 {[%clk 0:01:04.5]} 33... hxg5 {[%clk 0:00:48.8]} 34. Kf2
{[%clk 0:01:04.7]} 34... f6 {[%clk 0:00:46]} 35. Kg3 {[%clk 0:01:04.1]} 35...
Nb3 {[%clk 0:00:39.1]} 36. a6 {[%clk 0:01:02.6]} 36... bxa6 {[%clk 0:00:38.4]}
37. Bxa6 {[%clk 0:01:03.5]} 37... Nc5 {[%clk 0:00:36.7]} 38. Bc4 {[%clk
0:01:02.9]} 38... Ke7 {[%clk 0:00:36.2]} 39. Bd5 {[%clk 0:01:02.9]} 39... Kd6
{[%clk 0:00:35.4]} 40. Kg4 {[%clk 0:01:01.9]} 40... Nd3 {[%clk 0:00:34]} 41. Kg3
{[%clk 0:00:56.1]} 41... Ke7 {[%clk 0:00:31.6]} 42. Kh2 {[%clk 0:00:52.1]} 42...
Kd6 {[%clk 0:00:29.4]} 43. Kg1 {[%clk 0:00:51.6]} 43... Kc5 {[%clk 0:00:29.4]}
44. c4 {[%clk 0:00:51.8]} 44... Nb2 {[%clk 0:00:26.9]} 45. Kf2 {[%clk
0:00:51.8]} 45... Nxc4 {[%clk 0:00:09.3]} 46. Bxc4 {[%clk 0:00:52.7]} 46... Kxc4
{[%clk 0:00:09.3]} 47. Kg3 {[%clk 0:00:50.6]} 47... Kc5 {[%clk 0:00:07.4]} 48.
Kg4 {[%clk 0:00:50.7]} 48... Kd6 {[%clk 0:00:07.8]} 49. Kf5 {[%clk 0:00:50.2]}
49... Ke7 {[%clk 0:00:08.7]} 50. Kg6 {[%clk 0:00:49.5]} 50... Ke6 {[%clk
0:00:08.9]} 51. Kg7 {[%clk 0:00:45.2]} 51... Ke7 {[%clk 0:00:09.1]} 52. Kg8
{[%clk 0:00:45]} 52... Ke8 {[%clk 0:00:09]} 53. Kh7 {[%clk 0:00:42.6]} 53... Kf7
{[%clk 0:00:08.8]} 54. Kh6 {[%clk 0:00:42.7]} 54... Ke6 {[%clk 0:00:08.3]} 55.
Kg6 {[%clk 0:00:42.9]} 55... Ke7 {[%clk 0:00:08.6]} 56. Kg7 {[%clk 0:00:40.9]}
56... Ke6 {[%clk 0:00:08]} 57. Kf8 {[%clk 0:00:40.6]} 57... f5 {[%clk
0:00:08.3]} 58. Kg7 {[%clk 0:00:40.4]} 58... g4 {[%clk 0:00:05.9]} 59. Kg6
{[%clk 0:00:34.4]} 59... fxe4 {[%clk 0:00:05.7]} 60. fxe4 {[%clk 0:00:34.5]}
60... Kd6 {[%clk 0:00:05.7]} 61. Kf5 {[%clk 0:00:27.8]} 61... g3 {[%clk
0:00:05.2]} 62. Kg4 {[%clk 0:00:27.9]} 62... Kc5 {[%clk 0:00:05.4]} 63. Kxg3
{[%clk 0:00:28.4]} 63... Kd4 {[%clk 0:00:05.7]} 64. Kf3 {[%clk 0:00:29]} 64...
Kd3 {[%clk 0:00:06]} 65. g4 {[%clk 0:00:28.8]} 1-0

[Event "*** Titled Tuesday Blitz"]
[Site "Chess.com"]
[Date "2020.10.27"]
[Round "4"]
[White "Casper_Schoppen"]
[Black "Dedic8"]
[Result "1/2-1/2"]
[WhiteElo "2956"]
[BlackElo "2802"]
[TimeControl "180+1"]
[EndTime "10:39:57 PDT"]
[Termination "Game drawn - insufficient material"]

1. c4 {[%clk 0:03:00.9]} 1... c5 {[%clk 0:02:59.5]} 2. Nf3 {[%clk 0:03:00.6]}
2... Nf6 {[%clk 0:02:58.9]} 3. g3 {[%clk 0:03:00.6]} 3... d5 {[%clk 0:02:58.2]}
4. cxd5 {[%clk 0:03:00.3]} 4... Nxd5 {[%clk 0:02:59.1]} 5. Bg2 {[%clk
0:02:59.8]} 5... Nc6 {[%clk 0:02:58.8]} 6. d4 {[%clk 0:02:59.6]} 6... cxd4
{[%clk 0:02:58]} 7. Nxd4 {[%clk 0:02:59.5]} 7... Ndb4 {[%clk 0:02:58.7]} 8. Nxc6
{[%clk 0:02:45.1]} 8... Qxd1+ {[%clk 0:02:59.6]} 9. Kxd1 {[%clk 0:02:44.9]} 9...
Nxc6 {[%clk 0:03:00.5]} 10. Nc3 {[%clk 0:02:39.6]} 10... Bd7 {[%clk 0:02:47]}
11. Be3 {[%clk 0:02:20.8]} 11... O-O-O {[%clk 0:02:43.3]} 12. Kc2 {[%clk
0:02:12.1]} 12... Bf5+ {[%clk 0:02:32.1]} 13. Be4 {[%clk 0:02:11.7]} 13... Bxe4+
{[%clk 0:02:22.6]} 14. Nxe4 {[%clk 0:02:11.3]} 14... h6 {[%clk 0:02:02.6]} 15.
Rhd1 {[%clk 0:02:10.9]} 15... Rxd1 {[%clk 0:01:58.7]} 16. Rxd1 {[%clk
0:02:10.5]} 16... e6 {[%clk 0:01:54.8]} 17. a3 {[%clk 0:01:55.7]} 17... Be7
{[%clk 0:01:53.8]} 18. b4 {[%clk 0:01:54.6]} 18... Rd8 {[%clk 0:01:46.5]} 19.
Rxd8+ {[%clk 0:01:53.6]} 19... Kxd8 {[%clk 0:01:47.4]} 20. b5 {[%clk 0:01:47.1]}
20... Ne5 {[%clk 0:01:44.6]} 21. Kb3 {[%clk 0:01:46.6]} 21... b6 {[%clk
0:01:34.5]} 22. Bd4 {[%clk 0:01:46]} 22... Bf6 {[%clk 0:01:13.6]} 23. Nxf6
{[%clk 0:01:43.7]} 23... gxf6 {[%clk 0:01:14.5]} 24. f4 {[%clk 0:01:34.8]} 24...
Nd7 {[%clk 0:01:12.6]} 25. g4 {[%clk 0:01:19.9]} 25... Ke7 {[%clk 0:01:12.1]}
26. Kc4 {[%clk 0:01:14.7]} 26... Kd6 {[%clk 0:01:07.4]} 27. e4 {[%clk
0:01:06.5]} 27... Ke7 {[%clk 0:00:35]} 28. h4 {[%clk 0:01:00.5]} 28... Kf8
{[%clk 0:00:33.8]} 29. h5 {[%clk 0:01:00.1]} 29... Ke7 {[%clk 0:00:33.8]} 30. a4
{[%clk 0:00:56.7]} 30... Kf8 {[%clk 0:00:32.9]} 31. a5 {[%clk 0:00:53.5]} 31...
Ke7 {[%clk 0:00:33.1]} 32. a6 {[%clk 0:00:52.1]} 32... Kf8 {[%clk 0:00:33.4]}
33. Be3 {[%clk 0:00:48.8]} 33... Kg7 {[%clk 0:00:31.7]} 34. Kd4 {[%clk
0:00:41.7]} 34... Kh7 {[%clk 0:00:30.8]} 35. e5 {[%clk 0:00:33.8]} 35... fxe5+
{[%clk 0:00:24.2]} 36. fxe5 {[%clk 0:00:33.9]} 36... Kg7 {[%clk 0:00:24.8]} 37.
Ke4 {[%clk 0:00:34.3]} 37... Kh7 {[%clk 0:00:25.1]} 38. Kf4 {[%clk 0:00:28]}
38... Kg7 {[%clk 0:00:25.5]} 39. g5 {[%clk 0:00:25.3]} 39... Kh7 {[%clk
0:00:17.9]} 40. Ke4 {[%clk 0:00:24]} 40... hxg5 {[%clk 0:00:17.8]} 41. Bxg5
{[%clk 0:00:24.9]} 41... Kg7 {[%clk 0:00:18.3]} 42. Be3 {[%clk 0:00:25.1]} 42...
Kh7 {[%clk 0:00:18.4]} 43. Kf4 {[%clk 0:00:22.2]} 43... Kg7 {[%clk 0:00:18.1]}
44. Kg5 {[%clk 0:00:22.2]} 44... Kh7 {[%clk 0:00:17]} 45. h6 {[%clk 0:00:20.9]}
45... Kg8 {[%clk 0:00:16.9]} 46. Bxb6 {[%clk 0:00:19.7]} 46... Nxb6 {[%clk
0:00:15.8]} 47. Kf6 {[%clk 0:00:20]} 47... Nd5+ {[%clk 0:00:14.9]} 48. Kg5
{[%clk 0:00:19.3]} 48... Nc7 {[%clk 0:00:15.3]} 49. Kf6 {[%clk 0:00:17.3]} 49...
Nxb5 {[%clk 0:00:14.3]} 50. h7+ {[%clk 0:00:16.1]} 50... Kxh7 {[%clk 0:00:14.7]}
51. Kxf7 {[%clk 0:00:17]} 51... Nc7 {[%clk 0:00:15.4]} 52. Ke7 {[%clk
0:00:16.9]} 52... Kg7 {[%clk 0:00:12.2]} 53. Kd6 {[%clk 0:00:16.8]} 53... Nxa6
{[%clk 0:00:12.3]} 54. Kxe6 {[%clk 0:00:17.7]} 54... Nc7+ {[%clk 0:00:10.2]} 55.
Kd6 {[%clk 0:00:16]} 55... a5 {[%clk 0:00:06.4]} 56. Kxc7 {[%clk 0:00:15.9]}
56... a4 {[%clk 0:00:06.4]} 57. e6 {[%clk 0:00:16.4]} 57... a3 {[%clk
0:00:05.9]} 58. e7 {[%clk 0:00:16.5]} 58... a2 {[%clk 0:00:06.5]} 59. e8=Q
{[%clk 0:00:16.6]} 59... a1=Q {[%clk 0:00:07.1]} 60. Qd7+ {[%clk 0:00:15.5]}
60... Kg6 {[%clk 0:00:06.9]} 61. Qg4+ {[%clk 0:00:15.4]} 61... Kh6 {[%clk
0:00:07.4]} 62. Qh4+ {[%clk 0:00:15]} 62... Kg6 {[%clk 0:00:08]} 63. Qe4+ {[%clk
0:00:14.1]} 63... Kh6 {[%clk 0:00:08.3]} 64. Qf4+ {[%clk 0:00:13.2]} 64... Kg6
{[%clk 0:00:08.2]} 65. Qd6+ {[%clk 0:00:13.2]} 65... Qf6 {[%clk 0:00:07.2]} 66.
Kd7 {[%clk 0:00:12.6]} 66... Qxd6+ {[%clk 0:00:07]} 67. Kxd6 {[%clk 0:00:12.8]}
1/2-1/2

[Event "*** Titled Tuesday Blitz"]
[Site "Chess.com"]
[Date "2020.10.27"]
[Round "4"]
[White "Andreikka"]
[Black "OK97"]
[Result "1/2-1/2"]
[WhiteElo "2919"]
[BlackElo "2790"]
[TimeControl "180+1"]
[EndTime "10:39:58 PDT"]
[Termination "Game drawn by repetition"]

1. e4 {[%clk 0:03:00.9]} 1... c5 {[%clk 0:02:58.4]} 2. Nf3 {[%clk 0:03:00.7]}
2... d6 {[%clk 0:02:58.4]} 3. d4 {[%clk 0:02:58.7]} 3... cxd4 {[%clk 0:02:59.3]}
4. Nxd4 {[%clk 0:02:59.3]} 4... Nf6 {[%clk 0:02:59.9]} 5. Nc3 {[%clk 0:02:59.2]}
5... Nc6 {[%clk 0:03:00.4]} 6. Bg5 {[%clk 0:02:52.6]} 6... Bd7 {[%clk
0:03:00.4]} 7. Qd3 {[%clk 0:02:49.9]} 7... Rc8 {[%clk 0:02:58]} 8. O-O-O {[%clk
0:02:49.1]} 8... Qb6 {[%clk 0:02:55.1]} 9. Be3 {[%clk 0:02:41]} 9... Nb4 {[%clk
0:02:47.9]} 10. Qe2 {[%clk 0:02:16.5]} 10... Rxc3 {[%clk 0:02:46.3]} 11. bxc3
{[%clk 0:02:16.9]} 11... Nxa2+ {[%clk 0:02:46]} 12. Kd2 {[%clk 0:02:17.4]} 12...
Nxe4+ {[%clk 0:02:45.3]} 13. Ke1 {[%clk 0:02:14.7]} 13... Naxc3 {[%clk
0:02:34.9]} 14. Nb3 {[%clk 0:01:43.2]} 14... Qc7 {[%clk 0:01:58.7]} 15. Qc4
{[%clk 0:01:41.3]} 15... Qxc4 {[%clk 0:01:55.3]} 16. Bxc4 {[%clk 0:01:42.2]}
16... Nxd1 {[%clk 0:01:55.7]} 17. Kxd1 {[%clk 0:01:43.1]} 17... b6 {[%clk
0:01:33.6]} 18. f3 {[%clk 0:01:36.6]} 18... Nf6 {[%clk 0:01:21.3]} 19. Ke2
{[%clk 0:01:29.3]} 19... d5 {[%clk 0:01:12.8]} 20. Bd3 {[%clk 0:01:28.2]} 20...
e5 {[%clk 0:01:12.7]} 21. Ra1 {[%clk 0:01:19.8]} 21... d4 {[%clk 0:01:09.2]} 22.
Bg5 {[%clk 0:01:13.8]} 22... a5 {[%clk 0:01:09.2]} 23. Nd2 {[%clk 0:01:11.9]}
23... Bd6 {[%clk 0:01:00.2]} 24. Nc4 {[%clk 0:00:40.3]} 24... Bc7 {[%clk
0:01:00.4]} 25. Rb1 {[%clk 0:00:39.8]} 25... Nd5 {[%clk 0:00:59.1]} 26. Bd2
{[%clk 0:00:40.3]} 26... Ke7 {[%clk 0:00:55.3]} 27. Be4 {[%clk 0:00:39.8]} 27...
Nb4 {[%clk 0:00:34.7]} 28. Bxb4+ {[%clk 0:00:35.5]} 28... axb4 {[%clk
0:00:35.6]} 29. Rxb4 {[%clk 0:00:36.1]} 29... Rb8 {[%clk 0:00:33.7]} 30. g4
{[%clk 0:00:35]} 30... g6 {[%clk 0:00:33.2]} 31. g5 {[%clk 0:00:29.8]} 31... b5
{[%clk 0:00:27.3]} 32. Nd2 {[%clk 0:00:27.1]} 32... Bd6 {[%clk 0:00:27.2]} 33.
Rb1 {[%clk 0:00:26.6]} 33... h6 {[%clk 0:00:21.2]} 34. h4 {[%clk 0:00:20.1]}
34... hxg5 {[%clk 0:00:21.1]} 35. hxg5 {[%clk 0:00:21]} 35... Rh8 {[%clk
0:00:19.8]} 36. Ra1 {[%clk 0:00:21.6]} 36... Rh2+ {[%clk 0:00:20]} 37. Kd3
{[%clk 0:00:18.1]} 37... Bb4 {[%clk 0:00:20.1]} 38. Nb3 {[%clk 0:00:18]} 38...
Be6 {[%clk 0:00:20.2]} 39. Ra7+ {[%clk 0:00:16.4]} 39... Kf8 {[%clk 0:00:20.6]}
40. Rc7 {[%clk 0:00:09.5]} 40... Bc4+ {[%clk 0:00:19.1]} 41. Rxc4 {[%clk
0:00:09.4]} 41... bxc4+ {[%clk 0:00:20]} 42. Kxc4 {[%clk 0:00:10.3]} 42... Bd6
{[%clk 0:00:19]} 43. Kd5 {[%clk 0:00:10.2]} 43... Ke7 {[%clk 0:00:18.9]} 44. Na5
{[%clk 0:00:10.3]} 44... Kd7 {[%clk 0:00:09.8]} 45. Nc4 {[%clk 0:00:08.4]} 45...
Bc7 {[%clk 0:00:10]} 46. Nxe5+ {[%clk 0:00:07.7]} 46... Bxe5 {[%clk 0:00:10]}
47. Kxe5 {[%clk 0:00:08.6]} 47... Rd2 {[%clk 0:00:10.1]} 48. Bd3 {[%clk
0:00:08.9]} 48... Rf2 {[%clk 0:00:09.1]} 49. f4 {[%clk 0:00:06.4]} 49... Ke7
{[%clk 0:00:08.6]} 50. Be4 {[%clk 0:00:06.4]} 50... Rf1 {[%clk 0:00:06.1]} 51.
Bd3 {[%clk 0:00:06.3]} 51... Rf2 {[%clk 0:00:06]} 52. Be4 {[%clk 0:00:06.8]}
52... Kd7 {[%clk 0:00:05.8]} 53. Bd3 {[%clk 0:00:06.2]} 53... Rf3 {[%clk
0:00:04.1]} 54. Be4 {[%clk 0:00:05]} 54... Rf1 {[%clk 0:00:04.5]} 55. Bd5 {[%clk
0:00:04.4]} 55... Ke7 {[%clk 0:00:04.2]} 56. Bc4 {[%clk 0:00:04.8]} 56... Rf2
{[%clk 0:00:03.7]} 57. Bd3 {[%clk 0:00:05.4]} 57... Rf3 {[%clk 0:00:03.4]} 58.
Be4 {[%clk 0:00:05.4]} 58... Rf2 {[%clk 0:00:04]} 59. Bd3 {[%clk 0:00:05.8]}
59... Kd7 {[%clk 0:00:04.4]} 60. Be4 {[%clk 0:00:05]} 60... Ke7 {[%clk
0:00:03.5]} 61. Bd3 {[%clk 0:00:05.3]} 1/2-1/2

[Event "*** Titled Tuesday Blitz"]
[Site "Chess.com"]
[Date "2020.10.27"]
[Round "4"]
[White "Neftegor"]
[Black "Fortitudine"]
[Result "0-1"]
[WhiteElo "2452"]
[BlackElo "2302"]
[TimeControl "180+1"]
[EndTime "10:39:58 PDT"]
[Termination "Fortitudine won by checkmate"]

1. Nf3 {[%clk 0:03:00.9]} 1... c5 {[%clk 0:02:52.9]} 2. c4 {[%clk 0:03:01.8]}
2... Nf6 {[%clk 0:02:52.4]} 3. Nc3 {[%clk 0:03:01.6]} 3... g6 {[%clk 0:02:53]}
4. g3 {[%clk 0:03:00.8]} 4... Bg7 {[%clk 0:02:52.9]} 5. Bg2 {[%clk 0:03:01.2]}
5... O-O {[%clk 0:02:53]} 6. d4 {[%clk 0:03:01.8]} 6... cxd4 {[%clk 0:02:53.1]}
7. Nxd4 {[%clk 0:03:02.7]} 7... Nc6 {[%clk 0:02:53.2]} 8. Nc2 {[%clk 0:03:00.5]}
8... d6 {[%clk 0:02:53.1]} 9. O-O {[%clk 0:02:59.9]} 9... Be6 {[%clk 0:02:52.5]}
10. b3 {[%clk 0:02:46.2]} 10... Qd7 {[%clk 0:02:52.6]} 11. Bb2 {[%clk
0:02:42.2]} 11... Bh3 {[%clk 0:02:52]} 12. Rc1 {[%clk 0:02:20.3]} 12... Bxg2
{[%clk 0:02:50.6]} 13. Kxg2 {[%clk 0:02:21.2]} 13... e6 {[%clk 0:01:43.6]} 14.
Ne3 {[%clk 0:02:20.1]} 14... Rfd8 {[%clk 0:01:43.4]} 15. Qd2 {[%clk 0:02:17.4]}
15... Ne5 {[%clk 0:01:40.2]} 16. Rfd1 {[%clk 0:02:16.3]} 16... Qc6+ {[%clk
0:01:39.6]} 17. Kg1 {[%clk 0:02:14.3]} 17... Ne4 {[%clk 0:01:28.7]} 18. Nxe4
{[%clk 0:02:13.5]} 18... Qxe4 {[%clk 0:01:29.6]} 19. Bc3 {[%clk 0:02:06.1]}
19... Bh6 {[%clk 0:01:07.7]} 20. f4 {[%clk 0:02:02.6]} 20... f5 {[%clk
0:00:16.6]} 21. Qd4 {[%clk 0:00:48.7]} 21... Qxd4 {[%clk 0:00:12.1]} 22. Rxd4
{[%clk 0:00:49.6]} 22... Nc6 {[%clk 0:00:11]} 23. Rd2 {[%clk 0:00:47.5]} 23...
Bf8 {[%clk 0:00:11]} 24. Rcd1 {[%clk 0:00:46.9]} 24... a5 {[%clk 0:00:10.6]} 25.
a4 {[%clk 0:00:44]} 25... Rd7 {[%clk 0:00:10.7]} 26. Nc2 {[%clk 0:00:43.5]}
26... Rad8 {[%clk 0:00:10.3]} 27. Kf2 {[%clk 0:00:40.4]} 27... Kf7 {[%clk
0:00:10.6]} 28. Na3 {[%clk 0:00:37.1]} 28... Be7 {[%clk 0:00:06.9]} 29. Nb5
{[%clk 0:00:36.9]} 29... d5 {[%clk 0:00:06.4]} 30. cxd5 {[%clk 0:00:35.3]} 30...
Rxd5 {[%clk 0:00:07.3]} 31. Rxd5 {[%clk 0:00:33.9]} 31... exd5 {[%clk 0:00:08]}
32. e3 {[%clk 0:00:27.1]} 32... Ke6 {[%clk 0:00:08]} 33. Nc7+ {[%clk 0:00:21.5]}
33... Kf7 {[%clk 0:00:07.5]} 34. Nb5 {[%clk 0:00:22.4]} 34... Bb4 {[%clk
0:00:06.5]} 35. Bb2 {[%clk 0:00:20.6]} 35... Ke6 {[%clk 0:00:05.6]} 36. Ke2
{[%clk 0:00:20.1]} 36... Rd7 {[%clk 0:00:05.6]} 37. Rd3 {[%clk 0:00:19.7]} 37...
Bc5 {[%clk 0:00:05.8]} 38. Kf3 {[%clk 0:00:18.5]} 38... b6 {[%clk 0:00:04.6]}
39. h4 {[%clk 0:00:16.9]} 39... h5 {[%clk 0:00:04.5]} 40. Rd1 {[%clk 0:00:16.5]}
40... Nb4 {[%clk 0:00:04.8]} 41. Bd4 {[%clk 0:00:15.1]} 41... Nc6 {[%clk
0:00:04.2]} 42. Bxc5 {[%clk 0:00:13.5]} 42... bxc5 {[%clk 0:00:05.1]} 43. Rc1
{[%clk 0:00:14]} 43... c4 {[%clk 0:00:04.3]} 44. bxc4 {[%clk 0:00:13.7]} 44...
d4 {[%clk 0:00:04.9]} 45. Rd1 {[%clk 0:00:12.2]} 45... d3 {[%clk 0:00:04.5]} 46.
Rd2 {[%clk 0:00:11.3]} 46... Nb4 {[%clk 0:00:05.4]} 47. Nd4+ {[%clk 0:00:10.6]}
47... Kd6 {[%clk 0:00:05.3]} 48. e4 {[%clk 0:00:08.9]} 48... Kc5 {[%clk
0:00:05.7]} 49. Ne6+ {[%clk 0:00:07.4]} 49... Kxc4 {[%clk 0:00:06.2]} 50. exf5
{[%clk 0:00:08.2]} 50... gxf5 {[%clk 0:00:07]} 51. Rd1 {[%clk 0:00:06.5]} 51...
Kc3 {[%clk 0:00:06.7]} 52. Nc5 {[%clk 0:00:06.5]} 52... Rd5 {[%clk 0:00:06.5]}
53. Ne6 {[%clk 0:00:06.2]} 53... Kc2 {[%clk 0:00:06.3]} 54. Ra1 {[%clk
0:00:04.6]} 54... d2 {[%clk 0:00:06.3]} 55. Nc7 {[%clk 0:00:04.5]} 55... Rd3+
{[%clk 0:00:06]} 56. Kg2 {[%clk 0:00:03.7]} 56... d1=Q {[%clk 0:00:06.5]} 57.
Ra2+ {[%clk 0:00:02.8]} 57... Nxa2 {[%clk 0:00:06.4]} 58. Nb5 {[%clk 0:00:03.7]}
58... Qd2+ {[%clk 0:00:06.9]} 59. Kh3 {[%clk 0:00:04.6]} 59... Qe1 {[%clk
0:00:06.3]} 60. Na3+ {[%clk 0:00:05.5]} 60... Kb2 {[%clk 0:00:06.5]} 61. Nc4+
{[%clk 0:00:05.1]} 61... Ka1 {[%clk 0:00:06.9]} 62. Ne3 {[%clk 0:00:04.4]} 62...
Qh1# {[%clk 0:00:07.4]} 0-1

[Event "*** Titled Tuesday Blitz"]
[Site "Chess.com"]
[Date "2020.10.27"]
[Round "4"]
[White "PowerThinking2650"]
[Black "nubair1198"]
[Result "0-1"]
[WhiteElo "2386"]
[BlackElo "2825"]
[TimeControl "180+1"]
[EndTime "10:40:01 PDT"]
[Termination "nubair1198 won on time"]

1. e4 {[%clk 0:03:00.9]} 1... Nf6 {[%clk 0:02:57.6]} 2. e5 {[%clk 0:02:59.3]}
2... Nd5 {[%clk 0:02:57.4]} 3. d4 {[%clk 0:03:00]} 3... d6 {[%clk 0:02:57.8]} 4.
Nf3 {[%clk 0:03:00.6]} 4... Nb6 {[%clk 0:02:57.8]} 5. c4 {[%clk 0:02:41.9]} 5...
g6 {[%clk 0:02:58.1]} 6. exd6 {[%clk 0:02:41.6]} 6... cxd6 {[%clk 0:02:59]} 7.
Nc3 {[%clk 0:02:39.6]} 7... Bg7 {[%clk 0:02:59.5]} 8. Be2 {[%clk 0:02:39.6]}
8... O-O {[%clk 0:03:00]} 9. Be3 {[%clk 0:02:39.4]} 9... Nc6 {[%clk 0:02:58.7]}
10. c5 {[%clk 0:02:29.5]} 10... dxc5 {[%clk 0:02:57.3]} 11. dxc5 {[%clk
0:02:30]} 11... Nd7 {[%clk 0:02:57.9]} 12. O-O {[%clk 0:01:55.5]} 12... Qa5
{[%clk 0:02:47.8]} 13. a3 {[%clk 0:01:48.2]} 13... Bxc3 {[%clk 0:02:45.7]} 14.
bxc3 {[%clk 0:01:48.5]} 14... Nxc5 {[%clk 0:02:46.1]} 15. Qd5 {[%clk 0:01:39.9]}
15... Na4 {[%clk 0:02:36.4]} 16. Qxa5 {[%clk 0:01:23.8]} 16... Nxa5 {[%clk
0:02:35.3]} 17. Rac1 {[%clk 0:01:07.9]} 17... Bg4 {[%clk 0:02:28.2]} 18. h3
{[%clk 0:01:07.4]} 18... Bxf3 {[%clk 0:02:28.1]} 19. Bxf3 {[%clk 0:01:08.3]}
19... Rfc8 {[%clk 0:02:23.5]} 20. Rfd1 {[%clk 0:01:00.8]} 20... Nc5 {[%clk
0:01:53.7]} 21. Rd5 {[%clk 0:00:51.4]} 21... Nab3 {[%clk 0:01:52.6]} 22. Rcd1
{[%clk 0:00:47.1]} 22... a5 {[%clk 0:01:44.5]} 23. Bh6 {[%clk 0:00:41.4]} 23...
f6 {[%clk 0:01:38.3]} 24. h4 {[%clk 0:00:30.2]} 24... Kf7 {[%clk 0:01:37.3]} 25.
Be3 {[%clk 0:00:21.3]} 25... Ra6 {[%clk 0:01:32.8]} 26. Bg4 {[%clk 0:00:20.4]}
26... f5 {[%clk 0:01:32.3]} 27. Bf3 {[%clk 0:00:20.4]} 27... Rac6 {[%clk
0:01:20.2]} 28. Rd8 {[%clk 0:00:19.8]} 28... Rxd8 {[%clk 0:01:15.5]} 29. Rxd8
{[%clk 0:00:20.7]} 29... Ne4 {[%clk 0:01:16]} 30. Rb8 {[%clk 0:00:15.6]} 30...
Rc7 {[%clk 0:01:07.9]} 31. Bf4 {[%clk 0:00:15.6]} 31... Rd7 {[%clk 0:01:06.5]}
32. Be2 {[%clk 0:00:15]} 32... e6 {[%clk 0:00:31]} 33. f3 {[%clk 0:00:12.3]}
33... Nxc3 {[%clk 0:00:29.3]} 34. Bc4 {[%clk 0:00:11.5]} 34... Nd2 {[%clk
0:00:26.1]} 35. Bxd2 {[%clk 0:00:09.1]} 35... Rxd2 {[%clk 0:00:27]} 36. Rxb7+
{[%clk 0:00:09.8]} 36... Kf6 {[%clk 0:00:27.2]} 37. Rb6 {[%clk 0:00:10.1]} 37...
Nd5 {[%clk 0:00:25.4]} 38. Ra6 {[%clk 0:00:07.9]} 38... f4 {[%clk 0:00:16.7]}
39. Bxd5 {[%clk 0:00:05]} 39... Rxd5 {[%clk 0:00:17.6]} 40. a4 {[%clk
0:00:04.8]} 40... h6 {[%clk 0:00:16.5]} 41. Kh2 {[%clk 0:00:04.8]} 41... Rh5
{[%clk 0:00:16]} 42. Kg1 {[%clk 0:00:04]} 42... Rd5 {[%clk 0:00:13.3]} 43. Kf2
{[%clk 0:00:04.4]} 43... g5 {[%clk 0:00:13.5]} 44. hxg5+ {[%clk 0:00:04.3]}
44... hxg5 {[%clk 0:00:14.4]} 45. Ra7 {[%clk 0:00:04.3]} 45... Ke5 {[%clk
0:00:13.5]} 46. Ra6 {[%clk 0:00:04.6]} 46... Kf5 {[%clk 0:00:12.6]} 47. Kf1
{[%clk 0:00:04.4]} 47... Re5 {[%clk 0:00:11.9]} 48. Kf2 {[%clk 0:00:04.6]} 48...
Rc5 {[%clk 0:00:12.2]} 49. Kf1 {[%clk 0:00:04.9]} 49... Ke5 {[%clk 0:00:12.4]}
50. Kf2 {[%clk 0:00:04.8]} 50... Kd5 {[%clk 0:00:12.9]} 51. Kf1 {[%clk
0:00:04.6]} 51... e5 {[%clk 0:00:13.3]} 52. Rg6 {[%clk 0:00:04.7]} 52... Rc4
{[%clk 0:00:13.7]} 53. Rxg5 {[%clk 0:00:04.6]} 53... Rxa4 {[%clk 0:00:14.3]} 54.
Rg8 {[%clk 0:00:04.9]} 54... Ra1+ {[%clk 0:00:13.6]} 55. Kf2 {[%clk 0:00:04.2]}
55... Ra2+ {[%clk 0:00:14.5]} 56. Kf1 {[%clk 0:00:03.5]} 56... Kd4 {[%clk
0:00:15.4]} 57. Re8 {[%clk 0:00:02.6]} 57... a4 {[%clk 0:00:14.8]} 58. Ra8
{[%clk 0:00:01.5]} 58... Ke3 {[%clk 0:00:14.6]} 59. Kg1 {[%clk 0:00:01.4]} 59...
Ra1+ {[%clk 0:00:14.4]} 60. Kh2 {[%clk 0:00:01.9]} 60... a3 {[%clk 0:00:13.8]}
61. Ra5 {[%clk 0:00:01.3]} 61... Kd4 {[%clk 0:00:13.5]} 62. Ra4+ {[%clk
0:00:01.4]} 62... Kc3 {[%clk 0:00:13.9]} 63. Ra5 {[%clk 0:00:01.7]} 63... Kb4
{[%clk 0:00:13.5]} 64. Rxe5 {[%clk 0:00:01.7]} 64... Rc1 {[%clk 0:00:14]} 65.
Re4+ {[%clk 0:00:01.8]} 65... Rc4 {[%clk 0:00:14.3]} 66. Re8 {[%clk 0:00:01]}
66... Kb3 {[%clk 0:00:13.5]} 0-1